fUSD/lending_fUSD_20240831
["ID","MTS","AMOUNT","RATE_DAILY","PERIOD"]
[336747713,1725097067923,-500.0,0.0004,120]
[336747714,1725097067966,-500.0,0.0004,120]
[336747715,1725097068014,-500.0,0.0004,120]
[336747716,1725097068062,-500.0,0.0004,120]
[336747717,1725097068108,-500.0,0.0004,120]
[336747718,1725097068153,-560.46,0.0004,120]
[336747719,1725097068199,-500.0,0.0004,120]
[336747720,1725097068252,-500.0,0.0004,120]
[336747721,1725097068301,-500.0,0.0004,120]
[336747722,1725097068350,-561.62,0.0004,120]
[336747723,1725097068396,-500.0,0.0004,120]
[336747724,1725097068444,-500.0,0.0004,120]
[336747725,1725097068490,-500.0,0.0004,120]
[336747726,1725097068537,-500.0,0.0004,120]
[336747727,1725097068581,-500.0,0.0004,120]
[336747728,1725097068628,-500.0,0.0004,120]
[336747729,1725097068675,-500.0,0.0004,120]
[336747730,1725097068721,-342.97733994,0.0004,120]
[336747731,1725097068767,-500.0,0.0004,120]
[336747732,1725097068812,-500.0,0.0004,120]
[336747733,1725097068858,-500.0,0.0004,120]
[336747734,1725097068903,-500.0,0.0004,120]
[336747735,1725097068949,-500.0,0.0004,120]
[336747736,1725097068997,-500.0,0.0004,120]
[336747737,1725097069045,-500.0,0.0004,120]
[336747738,1725097069091,-500.0,0.0004,120]
[336747739,1725097069140,-500.0,0.0004,120]
[336747740,1725097069191,-946.93,0.0004,120]
[336747741,1725097069242,-500.0,0.0004,120]
[336747742,1725097069293,-641.84062646,0.0004,120]
[336747743,1725097069341,-500.0,0.0004,120]
[336747744,1725097069388,-590.31,0.0004,120]
[336747745,1725097069674,-500.0,0.0004,120]
[336747746,1725097069729,-613.71034427,0.0004,120]
[336747747,1725097069781,-501.3488111,0.0004,120]
[336747748,1725097069833,-500.0,0.0004,120]
[336747749,1725097069883,-500.0,0.0004,120]
[336747750,1725097069935,-725.19,0.0004,120]
[336747751,1725097069985,-532.94,0.0004,120]
[336747752,1725097070037,-500.0,0.0004,120]
[336747753,1725097070089,-500.0,0.0004,120]
[336747754,1725097070141,-500.0,0.0004,120]
[336747755,1725097070194,-500.0,0.0004,120]
[336747756,1725097070244,-500.0,0.0004,120]
[336747757,1725097070294,-500.0,0.0004,120]
[336747758,1725097070345,-500.0,0.0004,120]
[336747759,1725097070397,-500.0,0.0004,120]
[336747760,1725097070454,-500.0,0.0004,120]
[336747761,1725097070502,-500.0,0.0004,120]
[336747762,1725097070550,-412.03505671,0.0004,120]
[336747763,1725097070598,-500.0,0.0004,120]
[336747764,1725097070643,-835.6,0.0004,120]
[336747765,1725097070688,-500.0,0.0004,120]
[336747766,1725097070734,-500.0,0.0004,120]
[336747767,1725097070780,-500.0,0.0004,120]
[336747768,1725097070825,-500.0,0.0004,120]
[336747769,1725097070872,-500.0,0.0004,120]
[336747770,1725097070920,-1002.35,0.0004,120]
[336747771,1725097070968,-500.0,0.0004,120]
[336747772,1725097071015,-500.0,0.0004,120]
[336747773,1725097071063,-500.0,0.0004,120]
[336747774,1725097071116,-500.0,0.0004,120]
[336747775,1725097071169,-500.0,0.0004,120]
[336747776,1725097071222,-500.0,0.0004,120]
[336747777,1725097071275,-500.0,0.0004,120]
[336747778,1725097071328,-500.0,0.0004,120]
[336747779,1725097071382,-500.0,0.0004,120]
[336747780,1725097071433,-748.87,0.0004,120]
[336747781,1725097071479,-500.0,0.0004,120]
[336747782,1725097071528,-500.0,0.0004,120]
[336747783,1725097071578,-704.37,0.0004,120]
[336747784,1725097071626,-266.94601643,0.0004,120]
[336747785,1725097071674,-500.0,0.0004,120]
[336747786,1725097071724,-500.0,0.0004,120]
[336747787,1725097071773,-500.0,0.0004,120]
[336747788,1725097071822,-500.0,0.0004,120]
[336747789,1725097071871,-960.35,0.0004,120]
[336747790,1725097071919,-500.0,0.0004,120]
[336747791,1725097071967,-529.00529879,0.0004,120]
[336747792,1725097072017,-743.26,0.0004,120]
[336747793,1725097072070,-500.0,0.0004,120]
[336747794,1725097072121,-500.0,0.0004,120]
[336747795,1725097072173,-723.59,0.0004,120]
[336747796,1725097072227,-1975.9,0.0004,120]
[336747797,1725097072282,-500.0,0.0004,120]
[336747798,1725097072337,-937.79,0.0004,120]
[336747799,1725097072388,-500.0,0.0004,120]
[336747800,1725097072441,-500.0,0.0004,120]
[336747801,1725097072491,-957.01,0.0004,120]
[336747802,1725097072541,-500.0,0.0004,120]
[336747803,1725097072590,-510.59,0.0004,120]
[336747804,1725097072636,-500.0,0.0004,120]
[336747805,1725097072686,-500.0,0.0004,120]
[336747806,1725097072735,-621.5,0.0004,120]
[336747807,1725097072786,-500.0,0.0004,120]
[336747808,1725097072837,-500.0,0.0004,120]
[336747809,1725097072885,-500.0,0.0004,120]
[336747810,1725097072935,-500.0,0.0004,120]
[336747811,1725097072983,-500.0,0.0004,120]
[336747812,1725097073032,-700.84,0.0004,120]
[336747813,1725097073078,-500.0,0.0004,120]
[336747814,1725097073123,-500.0,0.0004,120]
[336747815,1725097073170,-581.7,0.0004,120]
[336747816,1725097073216,-500.0,0.0004,120]
[336747817,1725097073312,-354.01072511,0.0004,120]
[336747818,1725097073365,-331.9793981,0.0004,120]
[336747819,1725097073418,-500.0,0.0004,120]
[336747820,1725097073468,-500.0,0.0004,120]
[336747821,1725097073519,-642.41,0.0004,120]
[336747822,1725097073571,-600.0,0.0004,120]
[336747823,1725097073622,-500.0,0.0004,120]
[336747824,1725097073672,-500.0,0.0004,120]
[336747825,1725097073719,-500.0,0.0004,120]
[336747826,1725097073766,-500.0,0.0004,120]
[336747827,1725097073810,-500.0,0.0004,120]
[336747828,1725097073855,-500.0,0.0004,120]
[336747829,1725097073903,-500.0,0.0004,120]
[336747830,1725097073950,-500.0,0.0004,120]
[336747831,1725097074001,-500.0,0.0004,120]
[336747832,1725097074051,-500.0,0.0004,120]
[336747833,1725097074102,-500.0,0.0004,120]
[336747834,1725097074161,-500.0,0.0004,120]
[336747835,1725097074212,-363.93504728,0.0004,120]
[336747836,1725097074262,-1149.09,0.0004,120]
[336747837,1725097074312,-164.79333912,0.0004,120]
[336747838,1725097074360,-500.0,0.0004,120]
[336747839,1725097074409,-583.56,0.0004,120]
[336747840,1725097074461,-500.0,0.0004,120]
[336747841,1725097074506,-500.0,0.0004,120]
[336747842,1725097074552,-500.0,0.0004,120]
[336747843,1725097074599,-703.88,0.0004,120]
[336747844,1725097074647,-500.0,0.0004,120]
[336747845,1725097074702,-575.9,0.0004,120]
[336747846,1725097074756,-500.0,0.0004,120]
[336747847,1725097074808,-500.0,0.0004,120]
[336747848,1725097074859,-500.0,0.0004,120]
[336747849,1725097074912,-692.08,0.0004,120]
[336747850,1725097074968,-500.0,0.0004,120]
[336747851,1725097075025,-500.0,0.0004,120]
[336747852,1725097075083,-709.25,0.0004,120]
[336747853,1725097075138,-500.0,0.0004,120]
[336747854,1725097075193,-500.0,0.0004,120]
[336747855,1725097075246,-345.08238932,0.0004,120]
[336747856,1725097075300,-908.27,0.0004,120]
[336747857,1725097075349,-744.36,0.0004,120]
[336747858,1725097075398,-500.0,0.0004,120]
[336747859,1725097075455,-500.0,0.0004,120]
[336747860,1725097075507,-500.0,0.0004,120]
[336747861,1725097075558,-1042.45,0.0004,120]
[336747862,1725097075607,-559.78,0.0004,120]
[336747863,1725097075657,-500.0,0.0004,120]
[336747864,1725097075703,-500.0,0.0004,120]
[336747865,1725097075751,-500.0,0.0004,120]
[336747866,1725097075797,-532.51,0.0004,120]
[336747867,1725097075843,-500.0,0.0004,120]
[336747868,1725097075884,-500.0,0.0004,120]
[336747869,1725097075928,-500.0,0.0004,120]
[336747870,1725097075974,-500.0,0.0004,120]
[336747871,1725097076020,-500.0,0.0004,120]
[336747872,1725097076066,-5894.48,0.0004,120]
[336747873,1725097076112,-999.03,0.0004,120]
[336747874,1725097076159,-500.0,0.0004,120]
[336747875,1725097076204,-500.0,0.0004,120]
[336747876,1725097076246,-500.0,0.0004,120]
[336747877,1725097076289,-500.0,0.0004,120]
[336747878,1725097076332,-500.0,0.0004,120]
[336747879,1725097076373,-959.15,0.0004,120]
[336747880,1725097076418,-500.0,0.0004,120]
[336747881,1725097076461,-500.0,0.0004,120]
[336747882,1725097076504,-500.0,0.0004,120]
[336747883,1725097076547,-500.0,0.0004,120]
[336747884,1725097076590,-500.0,0.0004,120]
[336747885,1725097076634,-500.0,0.0004,120]
[336747886,1725097076677,-773.73,0.0004,120]
[336747887,1725097076718,-500.0,0.0004,120]
[336747888,1725097076764,-576.08,0.0004,120]
[336747889,1725097076807,-4941.98,0.0004,120]
[336747890,1725097076853,-500.0,0.0004,120]
[336747891,1725097076897,-1002.27,0.0004,120]
[336747892,1725097076946,-527.82,0.0004,120]
[336747893,1725097076990,-500.0,0.0004,120]
[336747894,1725097077034,-500.0,0.0004,120]
[336747895,1725097077078,-560.67,0.0004,120]
[336747896,1725097077124,-500.0,0.0004,120]
[336747897,1725097077171,-951.43,0.0004,120]
[336747898,1725097077219,-600.87,0.0004,120]
[336747899,1725097077269,-2172.73,0.0004,120]
[336747900,1725097077319,-500.0,0.0004,120]
[336747901,1725097077368,-500.0,0.0004,120]
[336747902,1725097077419,-651.36,0.0004,120]
[336747903,1725097077468,-500.0,0.0004,120]
[336747904,1725097077517,-616.15,0.0004,120]
[336747905,1725097077567,-500.0,0.0004,120]
[336747906,1725097077621,-500.0,0.0004,120]
[336747907,1725097077668,-1919.32,0.0004,120]
[336747908,1725097077715,-641.39,0.0004,120]
[336747909,1725097077767,-500.0,0.0004,120]
[336747910,1725097077816,-500.0,0.0004,120]
[336747911,1725097077864,-500.0,0.0004,120]
[336747912,1725097077913,-500.0,0.0004,120]
[336747913,1725097077957,-705.93,0.0004,120]
[336747914,1725097078003,-2887.57,0.0004,120]
[336747915,1725097078051,-500.0,0.0004,120]
[336747916,1725097078103,-563.2,0.0004,120]
[336747917,1725097078156,-546.79,0.0004,120]
[336747918,1725097078211,-5244.54,0.0004,120]
[336747919,1725097078265,-1196.9,0.0004,120]
[336747920,1725097078313,-500.0,0.0004,120]
[336747921,1725097078461,-954.53,0.0004,120]
[336747922,1725097078523,-509.91,0.0004,120]
[336747923,1725097078571,-754.96,0.0004,120]
[336747924,1725097078618,-534.73,0.0004,120]
[336747925,1725097078663,-500.0,0.0004,120]
[336747926,1725097078709,-500.0,0.0004,120]
[336747927,1725097078757,-500.0,0.0004,120]
[336747928,1725097078804,-1291.66,0.0004,120]
[336747929,1725097078852,-500.0,0.0004,120]
[336747930,1725097078899,-1172.65,0.0004,120]
[336747931,1725097078946,-771.32,0.0004,120]
[336747932,1725097078992,-500.0,0.0004,120]
[336747933,1725097079041,-500.0,0.0004,120]
[336747934,1725097079088,-1861.26,0.0004,120]
[336747935,1725097079138,-1885.7,0.0004,120]
[336747936,1725097079188,-662.9,0.0004,120]
[336747937,1725097079236,-500.0,0.0004,120]
[336747938,1725097079283,-785.17,0.0004,120]
[336747939,1725097079329,-500.0,0.0004,120]
[336747940,1725097079375,-1251.52,0.0004,120]
[336747941,1725097079421,-758.26,0.0004,120]
[336747942,1725097079466,-963.03,0.0004,120]
[336747943,1725097079511,-1436.3,0.0004,120]
[336747944,1725097079558,-827.96,0.0004,120]
[336747945,1725097079603,-500.0,0.0004,120]
[336747946,1725097079648,-500.0,0.0004,120]
[336747947,1725097079698,-818.6,0.0004,120]
[336747948,1725097079747,-500.0,0.0004,120]
[336747949,1725097079794,-545.12,0.0004,120]
[336747950,1725097079842,-700.92,0.0004,120]
[336747951,1725097079891,-500.0,0.0004,120]
[336747952,1725097079942,-642.58,0.0004,120]
[336747953,1725097079994,-970.93,0.0004,120]
[336747954,1725097080049,-1182.65,0.0004,120]
[336747955,1725097080103,-500.0,0.0004,120]
[336747956,1725097080167,-500.0,0.0004,120]
[336747957,1725097080221,-537.82,0.0004,120]
[336747958,1725097080279,-1318.5,0.0004,120]
[336747959,1725097080333,-500.0,0.0004,120]
[336747960,1725097080388,-3016.08,0.0004,120]
[336747961,1725097080443,-831.76,0.0004,120]
[336747962,1725097080497,-1476.17,0.0004,120]
[336747963,1725097080552,-983.21,0.0004,120]
[336747964,1725097080606,-885.33,0.0004,120]
[336747965,1725097080660,-2660.4,0.0004,120]
[336747966,1725097080714,-500.0,0.0004,120]
[336747967,1725097080769,-638.33,0.0004,120]
[336747968,1725097080822,-755.01,0.0004,120]
[336747969,1725097080874,-604.41,0.0004,120]
[336747970,1725097080924,-500.0,0.0004,120]
[336747971,1725097080973,-4191.91,0.0004,120]
[336747972,1725097081028,-3168.28,0.0004,120]
[336747973,1725097081085,-500.0,0.0004,120]
[336747974,1725097081140,-599.15,0.0004,120]
[336747975,1725097081191,-500.0,0.0004,120]
[336747976,1725097081243,-500.0,0.0004,120]
[336747977,1725097081295,-665.66,0.0004,120]
[336747978,1725097081344,-1523.88,0.0004,120]
[336747979,1725097081393,-500.0,0.0004,120]
[336747980,1725097081442,-200.41807034,0.0004,120]
[336747981,1725097081490,-618.99,0.0004,120]
[336747982,1725097081540,-500.0,0.00040547,120]
[336747983,1725097081588,-500.0,0.00040547,120]
[336747984,1725097081637,-500.0,0.00040547,120]
[336747985,1725097081686,-500.0,0.00040547,120]
[336747986,1725097081738,-500.0,0.00040547,120]
[336747987,1725097081793,-500.0,0.00040547,120]
[336747988,1725097081849,-500.0,0.00040547,120]
[336747989,1725097081904,-500.0,0.00040547,120]
[336747990,1725097081961,-500.0,0.00040547,120]
[336747991,1725097082016,-500.0,0.00040547,120]
[336747992,1725097082074,-500.0,0.00040547,120]
[336747993,1725097082130,-500.0,0.00040547,120]
[336747994,1725097082188,-500.0,0.00040547,120]
[336747995,1725097082244,-560.46,0.00040547,120]
[336747996,1725097082304,-500.0,0.00040547,120]
[336747997,1725097082361,-500.0,0.00040547,120]
[336747998,1725097082420,-500.0,0.00040547,120]
[336747999,1725097082475,-561.62,0.00040547,120]
[336748000,1725097082531,-500.0,0.00040547,120]
[336748001,1725097082585,-500.0,0.00040547,120]
[336748002,1725097082638,-500.0,0.00040547,120]
[336748003,1725097082692,-500.0,0.00040547,120]
[336748004,1725097082747,-500.0,0.00040547,120]
[336748005,1725097082801,-500.0,0.00040547,120]
[336748006,1725097082855,-500.0,0.00040547,120]
[336748007,1725097082907,-386.39669834,0.00040547,120]
[336748008,1725097082961,-500.0,0.00040547,120]
[336748009,1725097083013,-500.0,0.00040547,120]
[336748010,1725097083066,-500.0,0.00040547,120]
[336748011,1725097083353,-500.0,0.00040547,120]
[336748012,1725097083416,-500.0,0.00040547,120]
[336748013,1725097083476,-500.0,0.00040547,120]
[336748014,1725097083537,-500.0,0.00040547,120]
[336748015,1725097083598,-946.93,0.00040547,120]
[336748016,1725097083660,-500.0,0.00040547,120]
[336748017,1725097083721,-500.0,0.00040547,120]
[336748018,1725097083783,-590.31,0.00040547,120]
[336748019,1725097083845,-500.0,0.00040547,120]
[336748020,1725097083905,-234.44261542,0.00040547,120]
[336748021,1725097083964,-364.18818434,0.00040547,120]
[336748022,1725097084027,-725.19,0.00040547,120]
[336748023,1725097084087,-532.94,0.00040547,120]
[336748024,1725097084147,-500.0,0.00040547,120]
[336748025,1725097084208,-500.0,0.00040547,120]
[336748026,1725097084272,-500.0,0.00040547,120]
[336748027,1725097084333,-500.0,0.00040547,120]
[336748028,1725097084392,-500.0,0.00040547,120]
[336748029,1725097084452,-500.0,0.00040547,120]
[336748030,1725097084514,-500.0,0.00040547,120]
[336748031,1725097084573,-500.0,0.00040547,120]
[336748032,1725097084633,-500.0,0.00040547,120]
[336748033,1725097084694,-500.0,0.00040547,120]
[336748034,1725097084754,-500.0,0.00040547,120]
[336748035,1725097084813,-835.6,0.00040547,120]
[336748036,1725097084872,-267.79640246,0.00040547,120]
[336748037,1725097084930,-500.0,0.00040547,120]
[336748038,1725097084990,-500.0,0.00040547,120]
[336748039,1725097085049,-500.0,0.00040547,120]
[336748040,1725097085108,-500.0,0.00040547,120]
[336748041,1725097085168,-1002.35,0.00040547,120]
[336748042,1725097085228,-500.0,0.00040547,120]
[336748043,1725097085286,-500.0,0.00040547,120]
[336748044,1725097085344,-500.0,0.00040547,120]
[336748045,1725097085401,-500.0,0.00040547,120]
[336748046,1725097085462,-500.0,0.00040547,120]
[336748047,1725097085518,-187.19100439,0.00040547,120]
[336748048,1725097085576,-500.0,0.00040547,120]
[336748049,1725097085643,-382.95864707,0.00040547,120]
[336748050,1725097085703,-500.0,0.00040547,120]
[336748051,1725097085762,-748.87,0.00040547,120]
[336748052,1725097085819,-500.0,0.00040547,120]
[336748053,1725097085873,-500.0,0.00040547,120]
[336748054,1725097085926,-704.37,0.00040547,120]
[336748055,1725097085979,-500.0,0.00040547,120]
[336748056,1725097086033,-500.0,0.00040547,120]
[336748057,1725097086088,-188.12249786,0.00040547,120]
[336748058,1725097086143,-500.0,0.00040547,120]
[336748059,1725097086199,-960.35,0.00040547,120]
[336748060,1725097086255,-500.0,0.00040547,120]
[336748061,1725097086313,-743.26,0.00040547,120]
[336748062,1725097086370,-500.0,0.00040547,120]
[336748063,1725097086425,-500.0,0.00040547,120]
[336748064,1725097086480,-723.59,0.00040547,120]
[336748065,1725097086541,-1975.9,0.00040547,120]
[336748066,1725097086597,-500.0,0.00040547,120]
[336748067,1725097086655,-937.79,0.00040547,120]
[336748068,1725097086935,-500.0,0.00040547,120]
[336748069,1725097086993,-500.0,0.00040547,120]
[336748070,1725097087048,-957.01,0.00040547,120]
[336748071,1725097087100,-626.14161588,0.00040547,120]
[336748072,1725097087154,-510.59,0.00040547,120]
[336748073,1725097087210,-500.0,0.00040547,120]
[336748074,1725097087265,-500.0,0.00040547,120]
[336748075,1725097087319,-621.5,0.00040547,120]
[336748076,1725097087374,-500.0,0.00040547,120]
[336748077,1725097087429,-500.0,0.00040547,120]
[336748078,1725097087484,-500.0,0.00040547,120]
[336748079,1725097087538,-500.0,0.00040547,120]
[336748080,1725097087591,-500.0,0.00040547,120]
[336748081,1725097087641,-700.84,0.00040547,120]
[336748082,1725097087764,-500.0,0.00040547,120]
[336748083,1725097087819,-500.0,0.00040547,120]
[336748084,1725097087871,-581.7,0.00040547,120]
[336748085,1725097087924,-500.0,0.00040547,120]
[336748086,1725097087975,-500.0,0.00040547,120]
[336748087,1725097088026,-500.0,0.00040547,120]
[336748088,1725097088079,-642.41,0.00040547,120]
[336748089,1725097088128,-600.0,0.00040547,120]
[336748090,1725097088179,-500.0,0.00040547,120]
[336748091,1725097088225,-500.0,0.00040547,120]
[336748092,1725097088274,-500.0,0.00040547,120]
[336748093,1725097088322,-500.0,0.00040547,120]
[336748094,1725097088373,-500.0,0.00040547,120]
[336748095,1725097088426,-500.0,0.00040547,120]
[336748096,1725097088478,-500.0,0.00040547,120]
[336748097,1725097088527,-500.0,0.00040547,120]
[336748098,1725097088575,-500.0,0.00040547,120]
[336748099,1725097088626,-500.0,0.00040547,120]
[336748100,1725097088677,-500.0,0.00040547,120]
[336748101,1725097088732,-500.0,0.00040547,120]
[336748102,1725097088788,-1149.09,0.00040547,120]
[336748103,1725097088846,-500.0,0.00040547,120]
[336748104,1725097088901,-583.56,0.00040547,120]
[336748105,1725097088955,-500.0,0.00040547,120]
[336748106,1725097089010,-500.0,0.00040547,120]
[336748107,1725097089064,-500.0,0.00040547,120]
[336748108,1725097089121,-703.88,0.00040547,120]
[336748109,1725097089177,-500.0,0.00040547,120]
[336748110,1725097089232,-575.9,0.00040547,120]
[336748111,1725097089284,-500.0,0.00040547,120]
[336748112,1725097089334,-500.0,0.00040547,120]
[336748113,1725097089386,-500.0,0.00040547,120]
[336748114,1725097089437,-692.08,0.00040547,120]
[336748115,1725097089490,-500.0,0.00040547,120]
[336748116,1725097089542,-500.0,0.00040547,120]
[336748117,1725097089593,-709.25,0.00040547,120]
[336748118,1725097089641,-500.0,0.00040547,120]
[336748119,1725097089693,-500.0,0.00040547,120]
[336748120,1725097089749,-908.27,0.00040547,120]
[336748121,1725097089803,-744.36,0.00040547,120]
[336748122,1725097089856,-500.0,0.00040547,120]
[336748123,1725097089917,-500.0,0.00040547,120]
[336748124,1725097089976,-500.0,0.00040547,120]
[336748125,1725097090032,-559.78,0.00040547,120]
[336748126,1725097090088,-1042.45,0.00040547,120]
[336748127,1725097090144,-500.0,0.00040547,120]
[336748128,1725097090195,-500.0,0.00040547,120]
[336748129,1725097090246,-500.0,0.00040547,120]
[336748130,1725097090300,-532.51,0.00040547,120]
[336748131,1725097090353,-500.0,0.00040547,120]
[336748132,1725097090404,-500.0,0.00040547,120]
[336748133,1725097090463,-500.0,0.00040547,120]
[336748134,1725097090515,-500.0,0.00040547,120]
[336748135,1725097090568,-500.0,0.00040547,120]
[336748136,1725097090622,-5894.48,0.00040547,120]
[336748137,1725097090670,-999.03,0.00040547,120]
[336748138,1725097090716,-500.0,0.00040547,120]
[336748139,1725097090766,-500.0,0.00040547,120]
[336748140,1725097090811,-500.0,0.00040547,120]
[336748141,1725097090855,-500.0,0.00040547,120]
[336748142,1725097090902,-500.0,0.00040547,120]
[336748143,1725097090948,-959.15,0.00040547,120]
[336748144,1725097090996,-500.0,0.00040547,120]
[336748145,1725097091041,-500.0,0.00040547,120]
[336748146,1725097091085,-500.0,0.00040547,120]
[336748147,1725097091128,-500.0,0.00040547,120]
[336748148,1725097091173,-500.0,0.00040547,120]
[336748149,1725097091219,-773.73,0.00040547,120]
[336748150,1725097091265,-500.0,0.00040547,120]
[336748151,1725097091311,-500.0,0.00040547,120]
[336748152,1725097091358,-576.08,0.00040547,120]
[336748153,1725097091407,-4941.98,0.00040547,120]
[336748154,1725097091460,-500.0,0.00040547,120]
[336748155,1725097091511,-1002.27,0.00040547,120]
[336748156,1725097091561,-527.82,0.00040547,120]
[336748157,1725097091611,-500.0,0.00040547,120]
[336748158,1725097091659,-500.0,0.00040547,120]
[336748159,1725097091707,-560.67,0.00040547,120]
[336748160,1725097091755,-500.0,0.00040547,120]
[336748161,1725097091800,-951.43,0.00040547,120]
[336748162,1725097091845,-600.87,0.00040547,120]
[336748163,1725097091890,-2172.73,0.00040547,120]
[336748164,1725097091934,-500.0,0.00040547,120]
[336748165,1725097091977,-500.0,0.00040547,120]
[336748166,1725097092021,-651.36,0.00040547,120]
[336748167,1725097092067,-500.0,0.00040547,120]
[336748168,1725097092110,-616.15,0.00040547,120]
[336748169,1725097092156,-500.0,0.00040547,120]
[336748170,1725097092202,-500.0,0.00040547,120]
[336748171,1725097092250,-1919.32,0.00040547,120]
[336748172,1725097092297,-641.39,0.00040547,120]
[336748173,1725097092346,-500.0,0.00040547,120]
[336748174,1725097092393,-500.0,0.00040547,120]
[336748175,1725097092443,-500.0,0.00040547,120]
[336748176,1725097092493,-500.0,0.00040547,120]
[336748177,1725097092543,-705.93,0.00040547,120]
[336748178,1725097092592,-2887.57,0.00040547,120]
[336748179,1725097092643,-500.0,0.00040547,120]
[336748180,1725097092694,-563.2,0.00040547,120]
[336748181,1725097092748,-546.79,0.00040547,120]
[336748182,1725097092798,-5244.54,0.00040547,120]
[336748183,1725097092846,-1196.9,0.00040547,120]
[336748184,1725097092893,-500.0,0.00040547,120]
[336748185,1725097092939,-954.53,0.00040547,120]
[336748186,1725097092983,-509.91,0.00040547,120]
[336748187,1725097093130,-754.96,0.00040547,120]
[336748188,1725097093183,-534.73,0.00040547,120]
[336748189,1725097093230,-500.0,0.00040547,120]
[336748190,1725097093276,-500.0,0.00040547,120]
[336748191,1725097093323,-500.0,0.00040547,120]
[336748192,1725097093369,-1291.66,0.00040547,120]
[336748193,1725097093412,-500.0,0.00040547,120]
[336748194,1725097093460,-1172.65,0.00040547,120]
[336748195,1725097093503,-771.32,0.00040547,120]
[336748196,1725097093547,-500.0,0.00040547,120]
[336748197,1725097093591,-500.0,0.00040547,120]
[336748198,1725097093637,-1861.26,0.00040547,120]
[336748199,1725097093682,-1885.7,0.00040547,120]
[336748200,1725097093729,-662.9,0.00040547,120]
[336748201,1725097093774,-500.0,0.00040547,120]
[336748202,1725097093820,-785.17,0.00040547,120]
[336748203,1725097093870,-500.0,0.00040547,120]
[336748204,1725097093917,-1251.52,0.00040547,120]
[336748205,1725097093966,-758.26,0.00040547,120]
[336748206,1725097094019,-963.03,0.00040547,120]
[336748207,1725097094071,-1436.3,0.00040547,120]
[336748208,1725097094124,-827.96,0.00040547,120]
[336748209,1725097094175,-500.0,0.00040547,120]
[336748210,1725097094228,-500.0,0.00040547,120]
[336748211,1725097094281,-818.6,0.00040547,120]
[336748212,1725097094334,-500.0,0.00040547,120]